fUSD/lending_fUSD_20240420
["ID","MTS","AMOUNT","RATE_DAILY","PERIOD"]
[323084322,1713633047307,-201.530693,0.00015616,2]
[323084323,1713633047317,-151.0,0.00015616,2]
[323084324,1713633047327,-500.0,0.00015616,2]
[323084325,1713633047339,-500.0,0.00015616,2]
[323084326,1713633047348,-500.0,0.00015616,2]
[323084327,1713633047358,-500.0,0.00015616,2]
[323084328,1713633047368,-500.0,0.00015616,2]
[323084329,1713633047377,-643.57,0.00015616,2]
[323084330,1713633047387,-304.4,0.00015616,2]
[323084331,1713633047396,-500.0,0.00015616,2]
[323084332,1713633047406,-500.0,0.00015616,2]
[323084333,1713633047416,-500.0,0.00015616,2]
[323084334,1713633047425,-500.0,0.00015616,2]
[323084335,1713633047435,-500.0,0.00015616,2]
[323084336,1713633047445,-2475.74,0.00015616,2]
[323084337,1713633047455,-500.0,0.00015616,2]
[323084338,1713633047464,-500.0,0.00015616,2]
[323084339,1713633047473,-500.0,0.00015616,2]
[323084340,1713633047483,-626.48,0.00015616,2]
[323084341,1713633047493,-500.0,0.00015616,2]
[323084342,1713633047503,-722.86,0.00015616,2]
[323084343,1713633047512,-500.0,0.00015616,2]
[323084344,1713633047522,-284.63927419,0.0001562,2]
[323084345,1713633047531,-379.4406735,0.00015671,2]
[323084346,1713633047541,-304.26012048,0.00015671,2]
[323084347,1713633047551,-178.61,0.00015688,2]
[323084348,1713633047560,-2203.99683886,0.00015749,2]
[323084349,1713633047570,-197.2,0.0001589,2]
[323084350,1713633047580,-500.0,0.0001589,2]
[323084351,1713633047592,-500.0,0.0001589,2]
[323084352,1713633047602,-500.0,0.0001589,2]
[323084353,1713633047611,-228.65,0.0001589,2]
[323084354,1713633047621,-254.63,0.0001589,2]
[323084355,1713633047632,-500.0,0.0001589,2]
[323084356,1713633047642,-500.0,0.0001589,2]
[323084357,1713633047652,-500.0,0.0001589,2]
[323084358,1713633047661,-151.0,0.0001589,2]
[323084359,1713633047671,-500.0,0.0001589,2]
[323084360,1713633047681,-150.0,0.0001589,2]
[323084361,1713633047691,-151.0,0.0001589,2]
[323084362,1713633047700,-500.0,0.0001589,2]
[323084363,1713633047709,-500.0,0.0001589,2]
[323084364,1713633047718,-500.0,0.0001589,2]
[323084365,1713633047728,-151.0,0.0001589,2]
[323084366,1713633047738,-153.117603,0.0001589,2]
[323084367,1713633047748,-500.0,0.0001589,2]
[323084368,1713633047758,-151.0,0.0001589,2]
[323084369,1713633047767,-151.0,0.0001589,2]
[323084370,1713633047776,-151.0,0.0001589,2]
[323084371,1713633047786,-500.0,0.0001589,2]
[323084372,1713633047795,-151.0,0.0001589,2]
[323084373,1713633047804,-500.0,0.0001589,2]
[323084374,1713633047814,-964.64,0.0001589,2]
[323084375,1713633047823,-263.164623,0.0001589,2]
[323084376,1713633047834,-263.164623,0.0001589,2]
[323084377,1713633047845,-377.28,0.0001589,2]
[323084378,1713633047854,-500.0,0.0001589,2]
[323084379,1713633047864,-248.48861,0.0001589,2]
[323084380,1713633047873,-248.48861,0.0001589,2]
[323084381,1713633047883,-500.0,0.0001589,2]
[323084382,1713633047892,-500.0,0.0001589,2]
[323084383,1713633047901,-500.0,0.0001589,2]
[323084384,1713633047910,-665.82,0.0001589,2]
[323084385,1713633047919,-781.03,0.0001589,2]
[323084386,1713633047929,-500.0,0.0001589,2]
[323084387,1713633047937,-500.0,0.0001589,2]
[323084388,1713633047947,-500.0,0.0001589,2]
[323084389,1713633047961,-500.0,0.0001589,2]
[323084390,1713633047971,-500.0,0.0001589,2]
[323084391,1713633047980,-500.0,0.0001589,2]
[323084392,1713633047989,-213.48321376,0.0001589,2]
[323084393,1713633048001,-2800.06,0.0001589,2]
[323084394,1713633048010,-500.0,0.0001589,2]
[323084395,1713633048019,-500.0,0.0001589,2]
[323084396,1713633048029,-500.0,0.0001589,2]
[323084397,1713633048038,-500.0,0.0001589,2]
[323084398,1713633048047,-500.0,0.0001589,2]
[323084399,1713633048057,-500.0,0.0001589,2]
[323084400,1713633048066,-556.08,0.0001589,2]
[323084401,1713633048075,-375.93,0.0001589,2]
[323084402,1713633048084,-500.0,0.0001589,2]
[323084403,1713633048096,-500.0,0.0001589,2]
[323084404,1713633048105,-500.0,0.0001589,2]
[323084405,1713633048114,-500.0,0.0001589,2]
[323084406,1713633048123,-500.0,0.0001589,2]
[323084407,1713633048132,-2475.74,0.0001589,2]
[323084408,1713633048141,-500.0,0.0001589,2]
[323084409,1713633048151,-500.0,0.0001589,2]
[323084410,1713633048160,-245.06,0.0001589,2]
[323084411,1713633048170,-500.0,0.0001589,2]
[323084412,1713633048179,-722.86,0.0001589,2]
[323084413,1713633048189,-500.0,0.0001589,2]
[323084414,1713633048198,-177.99668941,0.00015898,2]
[323084415,1713633048208,-794.13100331,0.00015898,2]
[323084416,1713633048218,-202.544589,0.00015898,2]
[323084417,1713633048227,-454.670576,0.00015898,2]
[323084418,1713633048237,-454.670576,0.00015898,2]
[323084419,1713633048246,-202.544589,0.00015898,2]
[323084420,1713633048256,-151.0,0.00015898,2]
[323084421,1713633048265,-151.0,0.00015898,2]
[323084422,1713633048274,-228.316343,0.00015898,2]
[323084423,1713633048283,-228.316343,0.00015898,2]
[323084424,1713633048293,-151.91062,0.00015898,2]
[323084425,1713633048303,-387.208655,0.00015898,2]
[323084426,1713633048313,-151.91062,0.00015898,2]
[323084427,1713633048321,-387.208655,0.00015898,2]
[323084428,1713633048331,-151.0,0.00015898,2]
[323084429,1713633048382,-2815.5,0.00015992,2]
[323084430,1713633048391,-155325.86115844,0.00015998,2]
[323084431,1713633048775,-237.85141941,0.00014999,2]
[323084432,1713633048784,-151.0,0.00015,2]
[323084433,1713633048794,-500.0,0.00015068,2]
[323084434,1713633048804,-265.498213,0.00015342,2]
[323084435,1713633048813,-9273.74287779,0.00015998,2]
[323084436,1713633048822,-151.0,0.00015998,2]
[323084437,1713633048831,-151.0,0.00015998,2]
[323084438,1713633048843,-177.155895,0.00015998,2]
[323084439,1713633048852,-151.0,0.00015998,2]
[323084440,1713633048862,-151.0,0.00015998,2]
[323084441,1713633048871,-151.0,0.00015998,2]
[323084442,1713633048880,-151.0,0.00015998,2]
[323084443,1713633048889,-151.0,0.00015998,2]
[323084444,1713633048899,-151.0,0.00015998,2]
[323084445,1713633048908,-340.325733,0.00015998,2]
[323084446,1713633048917,-151.0,0.00015998,2]
[323084447,1713633048927,-340.325733,0.00015998,2]
[323084448,1713633048936,-151.0,0.00015998,2]
[323084449,1713633048946,-151.0,0.00015998,2]
[323084450,1713633048955,-151.0,0.00015998,2]
[323084451,1713633048967,-151.0,0.00015998,2]
[323084452,1713633048976,-251.100736,0.00015998,2]
[323084453,1713633048985,-480.094336,0.00015998,2]
[323084454,1713633048994,-251.100736,0.00015998,2]
[323084455,1713633049004,-151.0,0.00015998,2]
[323084456,1713633049013,-151.0,0.00015998,2]
[323084457,1713633049021,-480.094336,0.00015998,2]
[323084458,1713633049030,-151.0,0.00015998,2]
[323084459,1713633049041,-151.0,0.00015998,2]
[323084460,1713633049050,-151.0,0.00015998,2]
[323084461,1713633049059,-151.0,0.00015998,2]
[323084462,1713633049069,-151.0,0.00015998,2]
[323084463,1713633049078,-505.405145,0.00015998,2]
[323084464,1713633049089,-505.405145,0.00015998,2]
[323084465,1713633049098,-151.0,0.00015998,2]
[323084466,1713633049107,-162.185881,0.00015998,2]
[323084467,1713633049116,-151.0,0.00015998,2]
[323084468,1713633049125,-151.0,0.00015998,2]
[323084469,1713633049134,-151.0,0.00015998,2]
[323084470,1713633049143,-153.321542,0.00015998,2]
[323084471,1713633049152,-151.0,0.00015998,2]
[323084472,1713633049162,-151.0,0.00015998,2]
[323084473,1713633049171,-263.164623,0.00015998,2]
[323084474,1713633049180,-263.164623,0.00015998,2]
[323084475,1713633049189,-151.0,0.00015998,2]
[323084476,1713633049198,-151.0,0.00015998,2]
[323084477,1713633049207,-151.0,0.00015998,2]
[323084478,1713633049216,-248.48861,0.00015998,2]
[323084479,1713633049225,-248.48861,0.00015998,2]
[323084480,1713633049235,-218.613043,0.00015998,2]
[323084481,1713633049244,-218.613043,0.00015998,2]
[323084482,1713633049254,-151.0,0.00015998,2]
[323084483,1713633049264,-151.0,0.00015998,2]
[323084484,1713633049273,-174.139833,0.00015998,2]
[323084485,1713633049285,-151.0,0.00015998,2]
[323084486,1713633049295,-205.706947,0.00015998,2]
[323084487,1713633049305,-151.0,0.00015998,2]
[323084488,1713633049314,-151.0,0.00015998,2]
[323084489,1713633049324,-151.0,0.00015998,2]
[323084490,1713633049334,-151.0,0.00015998,2]
[323084491,1713633049350,-151.0,0.00015998,2]
[323084492,1713633049359,-151.0,0.00015998,2]
[323084493,1713633049369,-587.761225,0.00015998,2]
[323084494,1713633049379,-587.761225,0.00015998,2]
[323084495,1713633049390,-362.337955,0.00015998,2]
[323084496,1713633049399,-362.337955,0.00015998,2]
[323084497,1713633049409,-544.257348,0.00015998,2]
[323084498,1713633049420,-544.257348,0.00015998,2]
[323084499,1713633049429,-183.754738,0.00015998,2]
[323084500,1713633049440,-664.00879,0.00015998,2]
[323084501,1713633049450,-239.713806,0.00015998,2]
[323084502,1713633049460,-239.713806,0.00015998,2]
[323084503,1713633049470,-664.00879,0.00015998,2]
[323084504,1713633049480,-543.06027,0.00015998,2]
[323084505,1713633049490,-201.530693,0.00015998,2]
[323084506,1713633049500,-543.06027,0.00015998,2]
[323084507,1713633049510,-201.530693,0.00015998,2]
[323084508,1713633049519,-151.0,0.00015998,2]
[323084509,1713633049530,-917.810691,0.00015998,2]
[323084510,1713633049541,-917.810691,0.00015998,2]
[323084511,1713633049550,-151.0,0.00015998,2]
[323084512,1713633049559,-151.0,0.00015998,2]
[323084513,1713633049568,-151.0,0.00015998,2]
[323084514,1713633049578,-151.0,0.00015998,2]
[323084515,1713633049590,-351.859403,0.00015998,2]
[323084516,1713633049601,-351.859403,0.00015998,2]
[323084517,1713633049610,-692.155954,0.00015998,2]
[323084518,1713633049619,-202.544589,0.00015998,2]
[323084519,1713633049629,-454.670576,0.00015998,2]
[323084520,1713633049641,-692.155954,0.00015998,2]
[323084521,1713633049650,-454.670576,0.00015998,2]
[323084522,1713633049660,-202.544589,0.00015998,2]
[323084523,1713633049670,-151.0,0.00015998,2]
[323084524,1713633049679,-151.0,0.00015998,2]
[323084525,1713633049687,-228.316343,0.00015998,2]
[323084526,1713633049697,-223.787651,0.00015998,2]
[323084527,1713633049706,-228.316343,0.00015998,2]
[323084528,1713633049715,-223.787651,0.00015998,2]
[323084529,1713633049725,-151.91062,0.00015998,2]
[323084530,1713633049734,-387.208655,0.00015998,2]
[323084531,1713633049743,-151.91062,0.00015998,2]
[323084532,1713633049752,-387.208655,0.00015998,2]
[323084533,1713633049760,-182.366904,0.00015998,2]
[323084534,1713633049769,-2300.0,0.00016,2]
[323084535,1713633049779,-1000.0,0.00016,2]
[323084536,1713633049788,-150.0,0.000161,2]
[323084537,1713633049798,-500.0,0.00016125,2]
[323084538,1713633049807,-1000.0,0.00016127,2]
[323084539,1713633049816,-10000.0,0.00016127,2]
[323084540,1713633049825,-524.01,0.00016164,2]
[323084541,1713633049835,-500.0,0.00016164,2]
[323084542,1713633049850,-500.0,0.00016164,2]
[323084543,1713633049860,-500.0,0.00016164,2]
[323084544,1713633049869,-500.0,0.00016164,2]
[323084545,1713633049878,-493.77,0.00016164,2]
[323084546,1713633049888,-500.0,0.00016164,2]
[323084547,1713633049898,-150.0,0.00016164,2]
[323084548,1713633049908,-500.0,0.00016164,2]
[323084549,1713633049917,-500.0,0.00016164,2]
[323084550,1713633049928,-500.0,0.00016164,2]
[323084551,1713633049938,-588.15,0.00016164,2]
[323084552,1713633049948,-500.0,0.00016164,2]
[323084553,1713633049958,-500.0,0.00016164,2]
[323084554,1713633049970,-964.64,0.00016164,2]
[323084555,1713633049980,-500.0,0.00016164,2]
[323084556,1713633049990,-508.35,0.00016164,2]
[323084557,1713633050000,-500.0,0.00016164,2]
[323084558,1713633050009,-500.0,0.00016164,2]
[323084559,1713633050018,-665.82,0.00016164,2]
[323084560,1713633050028,-781.03,0.00016164,2]
[323084561,1713633050038,-500.0,0.00016164,2]
[323084562,1713633050048,-500.0,0.00016164,2]
[323084563,1713633050058,-500.0,0.00016164,2]
[323084564,1713633050067,-500.0,0.00016164,2]
[323084565,1713633050076,-500.0,0.00016164,2]
[323084566,1713633050085,-500.0,0.00016164,2]
[323084567,1713633050099,-2800.06,0.00016164,2]
[323084568,1713633050109,-500.0,0.00016164,2]
[323084569,1713633050118,-500.0,0.00016164,2]
[323084570,1713633050128,-500.0,0.00016164,2]
[323084571,1713633050138,-630.08,0.00016164,2]
[323084572,1713633050147,-500.0,0.00016164,2]
[323084573,1713633050157,-500.0,0.00016164,2]
[323084574,1713633050166,-500.0,0.00016164,2]
[323084575,1713633050176,-500.0,0.00016164,2]
[323084576,1713633050185,-500.0,0.00016164,2]
[323084577,1713633050195,-500.0,0.00016164,2]
[323084578,1713633050204,-500.0,0.00016164,2]
[323084579,1713633050214,-2475.74,0.00016164,2]
[323084580,1713633050224,-500.0,0.00016164,2]
[323084581,1713633050234,-156.80709083,0.00016164,2]
[323084582,1713633050244,-500.0,0.00016164,2]
[323084583,1713633050254,-722.86,0.00016164,2]
[323084584,1713633050264,-401.92,0.00016164,2]
[323084585,1713633050274,-10000.0,0.00016175,2]
[323084586,1713633050283,-221.08,0.00016225,2]
[323084587,1713633050293,-500.0,0.00016225,2]
[323084588,1713633050304,-500.0,0.00016225,2]
[323084589,1713633050314,-500.0,0.00016225,2]
[323084590,1713633050323,-500.0,0.00016225,2]
[323084591,1713633050334,-500.0,0.00016225,2]
[323084592,1713633050346,-500.0,0.00016225,2]
[323084593,1713633050357,-431.75,0.00016225,2]
[323084594,1713633050367,-500.0,0.00016225,2]
[323084595,1713633050377,-399.13877959,0.00016225,5]
[323084596,1713633050387,-500.0,0.00016225,2]
[323084597,1713633050397,-500.0,0.00016225,2]
[323084598,1713633050406,-211.9,0.00016225,2]
[323084599,1713633050416,-500.0,0.00016225,2]
[323084600,1713633050426,-500.0,0.00016225,2]
[323084601,1713633050436,-511.6,0.00016225,2]
[323084602,1713633050446,-500.0,0.00016225,2]
[323084603,1713633050456,-500.0,0.00016225,2]
[323084604,1713633050466,-155.25281614,0.00016226,2]
[323084605,1713633050477,-226.96,0.00016226,2]
[323084606,1713633050488,-643.0,0.00016298,2]
[323084607,1713633050499,-150.0,0.00016333,2]
[323084608,1713633050509,-284.63927419,0.0001634,2]
[323084609,1713633050519,-521.81,0.00016411,2]
[323084610,1713633050529,-200.0,0.00016427,2]
[323084611,1713633050539,-3000.0,0.0001643,2]
[323084612,1713633050548,-917.810691,0.0001643,2]
[323084613,1713633050558,-917.810691,0.0001643,2]
[323084614,1713633050569,-151.0,0.0001643,2]
[323084615,1713633050579,-151.0,0.0001643,2]
[323084616,1713633050590,-151.0,0.0001643,2]
[323084617,1713633050599,-351.859403,0.0001643,2]
[323084618,1713633050608,-351.859403,0.0001643,2]
[323084619,1713633050618,-692.155954,0.0001643,2]
[323084620,1713633050627,-692.155954,0.0001643,2]
[323084621,1713633050636,-223.787651,0.0001643,2]
[323084622,1713633050646,-223.787651,0.0001643,2]
[323084623,1713633050655,-160.56033085,0.00016434,2]
[323084624,1713633050665,-500.0,0.00016438,2]
[323084625,1713633050675,-500.0,0.00016438,2]
[323084626,1713633050685,-223.32,0.00016438,2]
[323084627,1713633050696,-332.67,0.00016438,2]
[323084628,1713633050706,-164.32,0.00016438,2]
[323084629,1713633050716,-150.0,0.00016438,2]
[323084630,1713633050725,-500.0,0.00016438,2]
[323084631,1713633050735,-639.77300742,0.00016438,2]
[323084632,1713633050744,-500.0,0.00016438,2]
[323084633,1713633050754,-560.1,0.00016438,2]
[323084634,1713633050763,-500.0,0.00016438,2]
[323084635,1713633050773,-151.0,0.00016438,2]
[323084636,1713633050783,-964.64,0.00016438,2]
[323084637,1713633050793,-151.0,0.00016438,2]
[323084638,1713633050802,-151.0,0.00016438,2]
[323084639,1713633050812,-500.0,0.00016438,2]
[323084640,1713633050822,-151.0,0.00016438,2]
[323084641,1713633050831,-218.613043,0.00016438,2]
[323084642,1713633050844,-218.613043,0.00016438,2]
[323084643,1713633050853,-151.0,0.00016438,2]
[323084644,1713633050863,-151.0,0.00016438,2]
[323084645,1713633050872,-151.0,0.00016438,2]
[323084646,1713633050883,-521.85,0.00016438,2]
[323084647,1713633050892,-151.0,0.00016438,2]
[323084648,1713633050902,-500.0,0.00016438,2]
[323084649,1713633050911,-665.82,0.00016438,2]
[323084650,1713633050921,-781.03,0.00016438,2]
[323084651,1713633050930,-603.84281777,0.00016438,2]
[323084652,1713633050939,-500.0,0.00016438,2]
[323084653,1713633050949,-151.0,0.00016438,2]
[323084654,1713633050961,-151.0,0.00016438,2]
[323084655,1713633050971,-500.0,0.00016438,2]
[323084656,1713633050981,-549.03,0.00016438,2]
[323084657,1713633050991,-151.0,0.00016438,2]
[323084658,1713633051001,-500.0,0.00016438,2]
[323084659,1713633051011,-587.761225,0.00016438,2]
[323084660,1713633051020,-587.761225,0.00016438,2]
[323084661,1713633051029,-362.337955,0.00016438,2]
[323084662,1713633051039,-500.0,0.00016438,2]
[323084663,1713633051049,-362.337955,0.00016438,2]
[323084664,1713633051059,-544.257348,0.00016438,2]
[323084665,1713633051069,-544.257348,0.00016438,2]
[323084666,1713633051079,-239.713806,0.00016438,2]
[323084667,1713633051093,-664.00879,0.00016438,2]
[323084668,1713633051103,-239.713806,0.00016438,2]
[323084669,1713633051113,-664.00879,0.00016438,2]
[323084670,1713633051123,-2800.06,0.00016438,2]
[323084671,1713633051133,-500.0,0.00016438,2]
[323084672,1713633051142,-543.06027,0.00016438,2]
[323084673,1713633051152,-201.530693,0.00016438,2]
[323084674,1713633051162,-543.06027,0.00016438,2]
[323084675,1713633051172,-500.0,0.00016438,2]
[323084676,1713633051181,-500.0,0.00016438,2]
[323084677,1713633051191,-201.530693,0.00016438,2]
[323084678,1713633051201,-500.0,0.00016438,2]
[323084679,1713633051210,-500.0,0.00016438,2]
[323084680,1713633051220,-500.0,0.00016438,2]
[323084681,1713633051230,-500.0,0.00016438,2]
[323084682,1713633051240,-500.0,0.00016438,2]
[323084683,1713633051249,-500.0,0.00016438,2]
[323084684,1713633051260,-500.0,0.00016438,2]
[323084685,1713633051270,-2475.74,0.00016438,2]
[323084686,1713633051279,-500.0,0.00016438,2]
[323084687,1713633051289,-500.0,0.00016438,2]
[323084688,1713633051299,-202.544589,0.00016438,2]
[323084689,1713633051308,-454.670576,0.00016438,2]
[323084690,1713633051318,-454.670576,0.00016438,2]
[323084691,1713633051327,-202.544589,0.00016438,2]
[323084692,1713633051340,-151.0,0.00016438,2]
[323084693,1713633051349,-722.86,0.00016438,2]
[323084694,1713633051360,-228.316343,0.00016438,2]
[323084695,1713633051370,-228.316343,0.00016438,2]
[323084696,1713633051380,-151.91062,0.00016438,2]
[323084697,1713633051390,-387.208655,0.00016438,2]
[323084698,1713633051399,-151.91062,0.00016438,2]
[323084699,1713633051409,-387.208655,0.00016438,2]
[323084700,1713633051418,-200.0,0.00016438,2]
[323084701,1713633051428,-151.0,0.00016438,2]
[323084702,1713633051437,-151.0,0.00016438,2]
[323084703,1713633051446,-151.0,0.00016438,2]
[323084704,1713633051456,-151.0,0.00016438,2]
[323084705,1713633051465,-1014.367268,0.00016438,2]
[323084706,1713633051475,-1014.367268,0.00016438,2]
[323084707,1713633051484,-1014.367268,0.00016438,2]
[323084708,1713633051493,-1014.367268,0.00016438,2]
[323084709,1713633051503,-1014.367268,0.00016438,2]
[323084710,1713633051513,-1014.367268,0.00016438,2]
[323084711,1713633051522,-577.38,0.00016438,2]
[323084712,1713633051531,-2141.44,0.00016438,2]
[323084713,1713633051541,-200.0,0.00016467,2]
[323084714,1713633051551,-712.0,0.00016475,2]
[323084715,1713633051560,-151.0,0.00016498,2]
[323084716,1713633051570,-151.0,0.00016498,2]
[323084717,1713633051580,-213.549739,0.00016498,2]
[323084718,1713633051591,-171.068799,0.00016498,2]
[323084719,1713633051601,-151.0,0.00016498,2]
[323084720,1713633051611,-340.325733,0.00016498,2]
[323084721,1713633051621,-151.0,0.00016498,2]
[323084722,1713633051631,-340.325733,0.00016498,2]
[323084723,1713633051640,-151.0,0.00016498,2]
[323084724,1713633051650,-151.0,0.00016498,2]
[323084725,1713633051660,-151.475569,0.00016498,2]
[323084726,1713633051669,-151.0,0.00016498,2]
[323084727,1713633051679,-251.100736,0.00016498,2]
[323084728,1713633051688,-480.094336,0.00016498,2]
[323084729,1713633051697,-251.100736,0.00016498,2]
[323084730,1713633051706,-151.0,0.00016498,2]
[323084731,1713633051715,-480.094336,0.00016498,2]
[323084732,1713633051724,-151.0,0.00016498,2]
[323084733,1713633051734,-151.0,0.00016498,2]
[323084734,1713633051744,-151.0,0.00016498,2]
[323084735,1713633051753,-151.0,0.00016498,2]
[323084736,1713633051763,-151.0,0.00016498,2]
[323084737,1713633051772,-505.405145,0.00016498,2]
[323084738,1713633051781,-505.405145,0.00016498,2]
[323084739,1713633051791,-151.0,0.00016498,2]
[323084740,1713633051800,-151.0,0.00016498,2]
[323084741,1713633051809,-151.0,0.00016498,2]
[323084742,1713633051818,-151.0,0.00016498,2]
[323084743,1713633051827,-151.0,0.00016498,2]
[323084744,1713633051836,-151.0,0.00016498,2]
[323084745,1713633051846,-151.0,0.00016498,2]
[323084746,1713633051856,-263.164623,0.00016498,2]
[323084747,1713633051864,-263.164623,0.00016498,2]
[323084748,1713633051874,-248.48861,0.00016498,2]
[323084749,1713633051883,-248.48861,0.00016498,2]
[323084750,1713633051892,-445.17766847,0.00016499,2]
[323084751,1713633051901,-500.0,0.00016499,2]
[323084752,1713633051910,-538.79,0.00016499,2]
[323084753,1713633051919,-500.0,0.00016499,2]
[323084754,1713633051928,-151.0,0.00016499,2]
[323084755,1713633051937,-151.0,0.00016499,2]
[323084756,1713633051948,-151.0,0.00016499,2]
[323084757,1713633051959,-151.0,0.00016499,2]
[323084758,1713633051972,-500.0,0.00016499,2]
[323084759,1713633051982,-500.0,0.00016499,2]
[323084760,1713633051991,-6076.63218565,0.00016499,2]
[323084761,1713633052001,-330.31,0.00016499,2]
[323084762,1713633052011,-500.0,0.00016499,2]
[323084763,1713633052021,-345.92,0.00016499,2]
[323084764,1713633052030,-347.954734,0.000165,2]
[323084765,1713633052043,-1223.62381622,0.000165,2]
[323084766,1713633052054,-150.0,0.000165,2]
[323084767,1713633052064,-1000.0,0.00016502,2]
[323084768,1713633052074,-500.0,0.00016502,2]
[323084769,1713633052084,-293.0,0.00016526,2]
[323084770,1713633052096,-200.0,0.00016537,2]
[323084771,1713633052106,-1000.0,0.00016537,2]
[323084772,1713633052115,-500.0,0.00016537,2]
[323084773,1713633052125,-200.0,0.00016537,2]
[323084774,1713633052134,-379.4406735,0.00016543,2]
[323084775,1713633052144,-304.26012048,0.00016543,2]
[323084776,1713633052153,-1000.0,0.00016557,2]
[323084777,1713633052163,-500.0,0.00016557,2]
[323084778,1713633052172,-200.0,0.00016576,2]
[323084779,1713633052182,-1000.0,0.00016576,2]
[323084780,1713633052191,-200.0,0.00016576,2]
[323084781,1713633052201,-500.0,0.00016576,2]
[323084782,1713633052210,-200.0,0.00016576,2]
[323084783,1713633052219,-711.662378,0.00016599,2]
[323084784,1713633052229,-207.13050664,0.00016599,2]
[323084785,1713633052239,-5842.87653255,0.00016599,2]
[323084786,1713633052248,-151.0,0.000166,2]
[323084787,1713633052257,-345.88768081,0.000166,2]
[323084788,1713633052267,-151.0,0.000166,2]
[323084789,1713633052277,-151.0,0.000166,2]
[323084790,1713633052286,-151.0,0.000166,2]
[323084791,1713633052296,-154.774244,0.000166,2]
[323084792,1713633052306,-151.0,0.000166,2]
[323084793,1713633052315,-305.62389338,0.000166,2]
[323084794,1713633052331,-708.74337462,0.000166,2]
[323084795,1713633052343,-218.613043,0.000166,2]
[323084796,1713633052352,-391.10141574,0.000166,2]
[323084797,1713633052364,-623.26585226,0.000166,2]
[323084798,1713633052374,-218.613043,0.000166,2]
[323084799,1713633052383,-151.0,0.000166,2]
[323084800,1713633052393,-151.0,0.000166,2]
[323084801,1713633052402,-151.0,0.000166,2]
[323084802,1713633052412,-151.0,0.000166,2]
[323084803,1713633052422,-151.0,0.000166,2]
[323084804,1713633052431,-151.0,0.000166,2]
[323084805,1713633052441,-587.761225,0.000166,2]
[323084806,1713633052450,-587.761225,0.000166,2]
[323084807,1713633052460,-362.337955,0.000166,2]
[323084808,1713633052469,-362.337955,0.000166,2]
[323084809,1713633052479,-544.257348,0.000166,2]
[323084810,1713633052488,-544.257348,0.000166,2]
[323084811,1713633052498,-664.00879,0.000166,2]
[323084812,1713633052508,-664.00879,0.000166,2]
[323084813,1713633052517,-201.530693,0.000166,2]
[323084814,1713633052527,-201.530693,0.000166,2]
[323084815,1713633052537,-151.0,0.00016607,2]
[323084816,1713633052546,-151.0,0.00016607,2]
[323084817,1713633052555,-242.56,0.00016607,2]
[323084818,1713633052565,-151.0,0.00016607,2]
[323084819,1713633052574,-151.0,0.00016607,2]
[323084820,1713633052583,-151.0,0.00016607,2]
[323084821,1713633052595,-263.164623,0.00016607,2]